[Event "*** Titled Tuesday Blitz"]
[Site "Chess.com"]
[Date "2020.04.14"]
[Round "4"]
[White "CastleOasisChess"]
[Black "Oleg_Papayan"]
[Result "1-0"]
[WhiteElo "2083"]
[BlackElo "2372"]
[TimeControl "180+1"]
[EndTime "10:40:24 PDT"]
[Termination "CastleOasisChess won on time"]

1. d4 {[%clk 0:03:00.9]} 1... Nf6 {[%clk 0:02:58.1]} 2. e3 {[%clk 0:02:59.5]}
2... d5 {[%clk 0:02:57.8]} 3. Bd3 {[%clk 0:02:58.6]} 3... Bg4 {[%clk 0:02:57.2]}
4. f3 {[%clk 0:02:57.8]} 4... Bh5 {[%clk 0:02:57.5]} 5. Ne2 {[%clk 0:02:55.7]}
5... e6 {[%clk 0:02:56.7]} 6. Nd2 {[%clk 0:02:54.8]} 6... c5 {[%clk 0:02:56.3]}
7. c3 {[%clk 0:02:55]} 7... Nc6 {[%clk 0:02:56]} 8. f4 {[%clk 0:02:54.9]} 8...
Bd6 {[%clk 0:02:50.4]} 9. O-O {[%clk 0:02:39.7]} 9... Qc7 {[%clk 0:02:50.7]} 10.
Qe1 {[%clk 0:02:29.7]} 10... cxd4 {[%clk 0:02:45.6]} 11. exd4 {[%clk 0:02:25.9]}
11... Bxe2 {[%clk 0:02:45.3]} 12. Qxe2 {[%clk 0:02:24.7]} 12... Bxf4 {[%clk
0:02:45.9]} 13. Nf3 {[%clk 0:02:23.8]} 13... Bxc1 {[%clk 0:02:38.1]} 14. Raxc1
{[%clk 0:02:24.7]} 14... O-O-O {[%clk 0:02:18.2]} 15. Rce1 {[%clk 0:02:11.9]}
15... Kb8 {[%clk 0:02:15.6]} 16. Ne5 {[%clk 0:02:11.4]} 16... Nxe5 {[%clk
0:01:34.4]} 17. Qxe5 {[%clk 0:02:05.4]} 17... Rd7 {[%clk 0:01:18]} 18. Qxc7+
{[%clk 0:02:03.4]} 18... Kxc7 {[%clk 0:01:13]} 19. Rf4 {[%clk 0:01:59.6]} 19...
Kd6 {[%clk 0:01:07.5]} 20. h4 {[%clk 0:01:56.1]} 20... h5 {[%clk 0:00:53.3]} 21.
Ref1 {[%clk 0:01:49.4]} 21... Rc7 {[%clk 0:00:52.9]} 22. Kh2 {[%clk 0:01:43.9]}
22... Ng4+ {[%clk 0:00:50.2]} 23. Kh3 {[%clk 0:01:39.4]} 23... f5 {[%clk
0:00:49.5]} 24. Kg3 {[%clk 0:01:33.7]} 24... Rh6 {[%clk 0:00:47.1]} 25. R4f3
{[%clk 0:01:23.8]} 25... Rg6 {[%clk 0:00:45.3]} 26. Kh3 {[%clk 0:01:16.6]} 26...
a6 {[%clk 0:00:44.6]} 27. Rc1 {[%clk 0:01:14.5]} 27... b5 {[%clk 0:00:41.3]} 28.
b3 {[%clk 0:01:02.9]} 28... Nf6 {[%clk 0:00:37]} 29. c4 {[%clk 0:01:02.2]} 29...
bxc4 {[%clk 0:00:34.6]} 30. bxc4 {[%clk 0:01:02.1]} 30... dxc4 {[%clk
0:00:30.9]} 31. Rxc4 {[%clk 0:01:01.8]} 31... Rxc4 {[%clk 0:00:23.2]} 32. Bxc4
{[%clk 0:01:02.7]} 32... Rg4 {[%clk 0:00:23.5]} 33. Bxa6 {[%clk 0:01:01.6]}
33... Rxd4 {[%clk 0:00:23.2]} 34. Rd3 {[%clk 0:00:58.9]} 34... e5 {[%clk
0:00:18.9]} 35. Rxd4+ {[%clk 0:00:43.9]} 35... exd4 {[%clk 0:00:19.8]} 36. Kg3
{[%clk 0:00:43.3]} 36... Ke5 {[%clk 0:00:16.7]} 37. Kf3 {[%clk 0:00:43.1]} 37...
Nd5 {[%clk 0:00:13.6]} 38. a4 {[%clk 0:00:38.8]} 38... Ne7 {[%clk 0:00:03.4]}
39. Bb5 {[%clk 0:00:35.4]} 39... Nc8 {[%clk 0:00:02.9]} 40. a5 {[%clk
0:00:34.7]} 40... Kd6 {[%clk 0:00:03.1]} 41. Kf4 {[%clk 0:00:33.7]} 41... Kc5
{[%clk 0:00:03.5]} 42. Bd3 {[%clk 0:00:33.7]} 42... Kb4 {[%clk 0:00:02.3]} 43.
Kxf5 {[%clk 0:00:32.3]} 43... Kc3 {[%clk 0:00:03.2]} 44. Ke4 {[%clk 0:00:32.1]}
44... Na7 {[%clk 0:00:02.8]} 45. Be2 {[%clk 0:00:23.5]} 45... Nc6 {[%clk
0:00:02.5]} 46. a6 {[%clk 0:00:20.9]} 46... Na7 {[%clk 0:00:03.1]} 47. Bxh5
{[%clk 0:00:20.5]} 47... d3 {[%clk 0:00:02.6]} 48. g4 {[%clk 0:00:18.8]} 48...
Kc2 {[%clk 0:00:02.1]} 49. g5 {[%clk 0:00:18.9]} 49... d2 {[%clk 0:00:03]} 50.
Be2 {[%clk 0:00:12.4]} 50... d1=Q {[%clk 0:00:01.5]} 51. Bxd1+ {[%clk
0:00:12.6]} 51... Kxd1 {[%clk 0:00:02.4]} 52. h5 {[%clk 0:00:13.3]} 52... Ke2
{[%clk 0:00:02.5]} 53. h6 {[%clk 0:00:13.9]} 53... gxh6 {[%clk 0:00:02.4]} 54.
gxh6 {[%clk 0:00:14.2]} 1-0

[Event "*** Titled Tuesday Blitz"]
[Site "Chess.com"]
[Date "2020.04.14"]
[Round "4"]
[White "AlessiaSanteramo"]
[Black "FM_Deuteronomio32"]
[Result "1-0"]
[WhiteElo "2060"]
[BlackElo "2227"]
[TimeControl "180+1"]
[EndTime "10:40:24 PDT"]
[Termination "AlessiaSanteramo won on time"]

1. e4 {[%clk 0:02:59.9]} 1... c5 {[%clk 0:02:59.1]} 2. Nf3 {[%clk 0:02:58.7]}
2... d6 {[%clk 0:02:59.6]} 3. Bb5+ {[%clk 0:02:58.8]} 3... Bd7 {[%clk
0:02:56.7]} 4. Bxd7+ {[%clk 0:02:58.4]} 4... Qxd7 {[%clk 0:02:57.6]} 5. c4
{[%clk 0:02:59]} 5... Nf6 {[%clk 0:02:48]} 6. Nc3 {[%clk 0:02:59.3]} 6... g6
{[%clk 0:02:48.6]} 7. d4 {[%clk 0:02:59.7]} 7... cxd4 {[%clk 0:02:49.1]} 8. Nxd4
{[%clk 0:03:00.6]} 8... Bg7 {[%clk 0:02:49.4]} 9. f3 {[%clk 0:02:53.5]} 9... O-O
{[%clk 0:02:49.2]} 10. Be3 {[%clk 0:02:50.7]} 10... Rc8 {[%clk 0:02:47.9]} 11.
b3 {[%clk 0:02:46.4]} 11... e6 {[%clk 0:01:35.7]} 12. O-O {[%clk 0:02:45.6]}
12... d5 {[%clk 0:01:34.3]} 13. exd5 {[%clk 0:02:21.2]} 13... exd5 {[%clk
0:01:33.3]} 14. Nde2 {[%clk 0:01:59.3]} 14... dxc4 {[%clk 0:01:31.3]} 15. bxc4
{[%clk 0:01:55.2]} 15... Rxc4 {[%clk 0:01:27.5]} 16. Rb1 {[%clk 0:01:48.6]}
16... Qe7 {[%clk 0:01:03]} 17. Bf2 {[%clk 0:01:47.3]} 17... Nc6 {[%clk
0:01:03.1]} 18. Nb5 {[%clk 0:01:35.6]} 18... Rd8 {[%clk 0:00:59.3]} 19. Qe1
{[%clk 0:01:36]} 19... a6 {[%clk 0:00:55.1]} 20. Nbc3 {[%clk 0:01:32.7]} 20...
Rd3 {[%clk 0:00:48.3]} 21. Nd1 {[%clk 0:01:29.4]} 21... Nd5 {[%clk 0:00:36.9]}
22. Nc1 {[%clk 0:01:16.4]} 22... Qxe1 {[%clk 0:00:30]} 23. Rxe1 {[%clk
0:01:17.3]} 23... Rd2 {[%clk 0:00:28.2]} 24. Nb3 {[%clk 0:00:41.6]} 24... Rxa2
{[%clk 0:00:22.8]} 25. Re8+ {[%clk 0:00:35.6]} 25... Bf8 {[%clk 0:00:22.8]} 26.
Bc5 {[%clk 0:00:36.1]} 26... Nde7 {[%clk 0:00:20.4]} 27. Ne3 {[%clk 0:00:29.2]}
27... Rc3 {[%clk 0:00:18.6]} 28. Nd5 {[%clk 0:00:22.8]} 28... Rxc5 {[%clk
0:00:15.9]} 29. Nxe7+ {[%clk 0:00:18]} 29... Nxe7 {[%clk 0:00:15.6]} 30. Nxc5
{[%clk 0:00:18.5]} 30... Nf5 {[%clk 0:00:05.5]} 31. Nd7 {[%clk 0:00:18.1]} 31...
Nd6 {[%clk 0:00:05.9]} 32. Rxf8+ {[%clk 0:00:17.7]} 32... Kg7 {[%clk 0:00:06.8]}
33. Rb8 {[%clk 0:00:17.2]} 33... b5 {[%clk 0:00:06.3]} 34. Nc5 {[%clk
0:00:14.7]} 34... Nc4 {[%clk 0:00:05.5]} 35. Ra8 {[%clk 0:00:13.5]} 35... Ne3
{[%clk 0:00:02.6]} 36. Rxa6 {[%clk 0:00:09.2]} 36... Rxg2+ {[%clk 0:00:03.3]}
37. Kh1 {[%clk 0:00:09.8]} 37... Rc2 {[%clk 0:00:04.2]} 38. Nd7 {[%clk
0:00:08.9]} 38... Nc4 {[%clk 0:00:03.2]} 39. Ra7 {[%clk 0:00:07.1]} 39... Kh6
{[%clk 0:00:03.2]} 40. Nc5 {[%clk 0:00:06.5]} 40... Kg5 {[%clk 0:00:03.6]} 41.
Ne4+ {[%clk 0:00:06.8]} 41... Kf4 {[%clk 0:00:03.2]} 42. Rxf7+ {[%clk
0:00:07.1]} 42... Ke3 {[%clk 0:00:03.7]} 43. Ng5 {[%clk 0:00:07.1]} 43... h6
{[%clk 0:00:02.3]} 44. Re7+ {[%clk 0:00:07]} 44... Kf2 {[%clk 0:00:02.3]} 45.
Ne4+ {[%clk 0:00:05]} 45... Kxf3 {[%clk 0:00:02.5]} 46. Rf1+ {[%clk 0:00:05.3]}
46... Kg4 {[%clk 0:00:01.2]} 47. Nf2+ {[%clk 0:00:05.6]} 47... Kg5 {[%clk
0:00:01.5]} 48. Rc7 {[%clk 0:00:03.9]} 48... b4 {[%clk 0:00:01.1]} 49. Rc5+
{[%clk 0:00:04.2]} 1-0

[Event "*** Titled Tuesday Blitz"]
[Site "Chess.com"]
[Date "2020.04.14"]
[Round "4"]
[White "eljanov"]
[Black "Vesper2018"]
[Result "1/2-1/2"]
[WhiteElo "2800"]
[BlackElo "1856"]
[TimeControl "180+1"]
[EndTime "10:40:25 PDT"]
[Termination "Game drawn by agreement"]

1. e4 {[%clk 0:02:57.1]} 1... c5 {[%clk 0:02:59.8]} 2. Nf3 {[%clk 0:02:56.7]}
2... d6 {[%clk 0:02:59.8]} 3. d4 {[%clk 0:02:55.9]} 3... cxd4 {[%clk 0:03:00]}
4. Nxd4 {[%clk 0:02:56]} 4... Nf6 {[%clk 0:03:00]} 5. Nc3 {[%clk 0:02:56]} 5...
a6 {[%clk 0:02:59.8]} 6. Be2 {[%clk 0:02:48.9]} 6... e5 {[%clk 0:02:59.2]} 7.
Nb3 {[%clk 0:02:44.5]} 7... Be7 {[%clk 0:02:57.6]} 8. O-O {[%clk 0:02:42]} 8...
O-O {[%clk 0:02:57]} 9. Bf3 {[%clk 0:02:36.9]} 9... Be6 {[%clk 0:02:54.1]} 10.
Re1 {[%clk 0:02:32.9]} 10... Nbd7 {[%clk 0:02:52.4]} 11. a4 {[%clk 0:02:30]}
11... Qc7 {[%clk 0:02:52]} 12. Be3 {[%clk 0:02:28.6]} 12... Rfd8 {[%clk
0:02:38.6]} 13. a5 {[%clk 0:02:18.5]} 13... Nc5 {[%clk 0:02:23.1]} 14. Nxc5
{[%clk 0:01:52.9]} 14... dxc5 {[%clk 0:02:22.3]} 15. Qe2 {[%clk 0:01:50.1]}
15... Qc6 {[%clk 0:02:11.9]} 16. Na4 {[%clk 0:01:27.1]} 16... c4 {[%clk
0:01:51.3]} 17. Nb6 {[%clk 0:01:21.5]} 17... Rab8 {[%clk 0:01:51.3]} 18. Bg5
{[%clk 0:00:55.4]} 18... h6 {[%clk 0:01:32.9]} 19. Bxf6 {[%clk 0:00:55.2]} 19...
Bxf6 {[%clk 0:01:33.2]} 20. c3 {[%clk 0:00:51.8]} 20... Be7 {[%clk 0:01:24.3]}
21. Nd5 {[%clk 0:00:49.8]} 21... Bf8 {[%clk 0:01:17.6]} 22. Red1 {[%clk
0:00:43.6]} 22... Rd7 {[%clk 0:01:14.3]} 23. Bg4 {[%clk 0:00:39.8]} 23... Rbd8
{[%clk 0:01:10.5]} 24. Bxe6 {[%clk 0:00:37.4]} 24... fxe6 {[%clk 0:01:10.1]} 25.
Nb6 {[%clk 0:00:29.9]} 25... Rxd1+ {[%clk 0:00:59.7]} 26. Rxd1 {[%clk
0:00:29.5]} 26... Qxe4 {[%clk 0:00:59.4]} 27. Qf1 {[%clk 0:00:26.6]} 27... Rd3
{[%clk 0:00:57.3]} 28. Re1 {[%clk 0:00:20.6]} 28... Qc6 {[%clk 0:00:42.4]} 29.
Rxe5 {[%clk 0:00:19.1]} 29... Bd6 {[%clk 0:00:35.1]} 30. Re1 {[%clk 0:00:15.5]}
30... Bc7 {[%clk 0:00:33.6]} 31. g3 {[%clk 0:00:08.8]} 31... Bxb6 {[%clk
0:00:31.8]} 32. axb6 {[%clk 0:00:09]} 32... Qxb6 {[%clk 0:00:32]} 33. Qe2 {[%clk
0:00:09.4]} 33... Kf7 {[%clk 0:00:21.4]} 34. Qe4 {[%clk 0:00:08.2]} 34... Qc6
{[%clk 0:00:19.3]} 35. Qxc6 {[%clk 0:00:06.4]} 35... bxc6 {[%clk 0:00:19.3]} 36.
Re4 {[%clk 0:00:06.7]} 36... Rd2 {[%clk 0:00:18.4]} 37. Rxc4 {[%clk 0:00:07.1]}
37... Rxb2 {[%clk 0:00:18.3]} 38. Rxc6 {[%clk 0:00:07.6]} 38... Ra2 {[%clk
0:00:18.6]} 39. Kf1 {[%clk 0:00:05.8]} 39... a5 {[%clk 0:00:18.2]} 40. c4 {[%clk
0:00:06.3]} 40... a4 {[%clk 0:00:18.3]} 41. Ra6 {[%clk 0:00:06.8]} 41... a3
{[%clk 0:00:16.6]} 42. c5 {[%clk 0:00:07.3]} 42... Ke7 {[%clk 0:00:13.6]} 43.
Ra7+ {[%clk 0:00:06.5]} 43... Kf6 {[%clk 0:00:13.7]} 44. h4 {[%clk 0:00:06.8]}
44... g6 {[%clk 0:00:11.2]} 45. Kg2 {[%clk 0:00:05.6]} 45... Ke5 {[%clk
0:00:10.1]} 46. c6 {[%clk 0:00:04.9]} 46... Rc2 {[%clk 0:00:09.6]} 47. Rxa3
{[%clk 0:00:03.9]} 47... Rxc6 {[%clk 0:00:09.8]} 48. Ra7 {[%clk 0:00:03.6]}
48... Kf6 {[%clk 0:00:09.9]} 49. Rh7 {[%clk 0:00:03.8]} 49... h5 {[%clk
0:00:10]} 50. Rd7 {[%clk 0:00:04.2]} 50... Rc2 {[%clk 0:00:10]} 51. Rd3 {[%clk
0:00:04.2]} 51... Ra2 {[%clk 0:00:10.1]} 52. Re3 {[%clk 0:00:03.8]} 1/2-1/2

[Event "*** Titled Tuesday Blitz"]
[Site "Chess.com"]
[Date "2020.04.14"]
[Round "4"]
[White "Malev212"]
[Black "CookiesAndIceCream"]
[Result "0-1"]
[WhiteElo "2519"]
[BlackElo "2347"]
[TimeControl "180+1"]
[EndTime "10:40:27 PDT"]
[Termination "CookiesAndIceCream won by checkmate"]

1. d4 {[%clk 0:03:00.9]} 1... d5 {[%clk 0:02:58.3]} 2. c4 {[%clk 0:02:59.9]}
2... c6 {[%clk 0:02:55.4]} 3. Nc3 {[%clk 0:02:59.5]} 3... Nf6 {[%clk 0:02:55.9]}
4. e3 {[%clk 0:02:58.3]} 4... e6 {[%clk 0:02:55.2]} 5. Nf3 {[%clk 0:02:58.1]}
5... Nbd7 {[%clk 0:02:54.6]} 6. Bd2 {[%clk 0:02:57.9]} 6... Bd6 {[%clk
0:02:52.3]} 7. Rc1 {[%clk 0:02:55.5]} 7... O-O {[%clk 0:02:49.4]} 8. g3 {[%clk
0:02:54.9]} 8... dxc4 {[%clk 0:02:43.6]} 9. a4 {[%clk 0:02:52.2]} 9... e5 {[%clk
0:02:37.6]} 10. Bxc4 {[%clk 0:02:47.4]} 10... e4 {[%clk 0:02:13.9]} 11. Ng5
{[%clk 0:02:38.5]} 11... Nb6 {[%clk 0:02:14]} 12. Bb3 {[%clk 0:02:36.7]} 12...
Bf5 {[%clk 0:02:11.8]} 13. f3 {[%clk 0:02:24]} 13... exf3 {[%clk 0:01:54.1]} 14.
Qxf3 {[%clk 0:02:22.6]} 14... Bg4 {[%clk 0:01:50.7]} 15. Qg2 {[%clk 0:02:20]}
15... h6 {[%clk 0:01:42.7]} 16. Nxf7 {[%clk 0:02:10.2]} 16... Rxf7 {[%clk
0:01:40.3]} 17. e4 {[%clk 0:02:09.6]} 17... Bb4 {[%clk 0:01:20.5]} 18. Be3
{[%clk 0:01:57.4]} 18... Bxc3+ {[%clk 0:01:15.8]} 19. bxc3 {[%clk 0:01:53.7]}
19... Qe7 {[%clk 0:01:15.8]} 20. Bxf7+ {[%clk 0:01:49.6]} 20... Qxf7 {[%clk
0:01:08.2]} 21. O-O {[%clk 0:01:48.3]} 21... Qe6 {[%clk 0:01:08.4]} 22. Rf4
{[%clk 0:01:43.5]} 22... Re8 {[%clk 0:01:04.5]} 23. Re1 {[%clk 0:01:39.4]} 23...
Nc4 {[%clk 0:01:02.7]} 24. Bc1 {[%clk 0:01:37.5]} 24... Bh5 {[%clk 0:01:00.1]}
25. h3 {[%clk 0:01:34.2]} 25... Bg6 {[%clk 0:00:59.9]} 26. e5 {[%clk 0:01:19.9]}
26... Nd5 {[%clk 0:00:58.2]} 27. Rf3 {[%clk 0:01:17]} 27... b5 {[%clk
0:00:49.2]} 28. Ref1 {[%clk 0:01:16]} 28... Be4 {[%clk 0:00:46]} 29. axb5 {[%clk
0:01:14.3]} 29... Bxf3 {[%clk 0:00:45.5]} 30. Qxf3 {[%clk 0:01:12.3]} 30... cxb5
{[%clk 0:00:45.6]} 31. Kh2 {[%clk 0:01:12]} 31... a5 {[%clk 0:00:42.2]} 32. Qh5
{[%clk 0:01:11]} 32... a4 {[%clk 0:00:40]} 33. g4 {[%clk 0:01:01.6]} 33... Rf8
{[%clk 0:00:40.1]} 34. Rf5 {[%clk 0:00:57.8]} 34... Rxf5 {[%clk 0:00:37]} 35.
gxf5 {[%clk 0:00:56.3]} 35... Qf7 {[%clk 0:00:37.2]} 36. Qf3 {[%clk 0:00:54.6]}
36... Ncb6 {[%clk 0:00:27.8]} 37. e6 {[%clk 0:00:52.6]} 37... Qc7+ {[%clk
0:00:25.6]} 38. Kg2 {[%clk 0:00:52.4]} 38... Qe7 {[%clk 0:00:23.6]} 39. Qh5
{[%clk 0:00:48.9]} 39... Qf6 {[%clk 0:00:20.4]} 40. Kf3 {[%clk 0:00:41.5]} 40...
Nxc3 {[%clk 0:00:17.7]} 41. Qe8+ {[%clk 0:00:33.8]} 41... Kh7 {[%clk 0:00:18]}
42. e7 {[%clk 0:00:33.2]} 42... Qxf5+ {[%clk 0:00:18.3]} 43. Kg2 {[%clk
0:00:32.3]} 43... Ncd5 {[%clk 0:00:14.6]} 44. Ba3 {[%clk 0:00:29.6]} 44... Nc4
{[%clk 0:00:13.7]} 45. Qf8 {[%clk 0:00:28.3]} 45... Qe4+ {[%clk 0:00:13.7]} 46.
Kg3 {[%clk 0:00:27.2]} 46... Nxe7 {[%clk 0:00:14]} 47. Bxe7 {[%clk 0:00:25.4]}
47... Qxd4 {[%clk 0:00:13.8]} 48. Qf5+ {[%clk 0:00:22.7]} 48... Kg8 {[%clk
0:00:11.9]} 49. Qf8+ {[%clk 0:00:22]} 49... Kh7 {[%clk 0:00:12.3]} 50. Qf5+
{[%clk 0:00:21.8]} 50... g6 {[%clk 0:00:12.8]} 51. Qf8 {[%clk 0:00:17.6]} 51...
Qe5+ {[%clk 0:00:11.6]} 52. Kg2 {[%clk 0:00:13.6]} 52... Ne3+ {[%clk 0:00:11.3]}
53. Kh1 {[%clk 0:00:10.2]} 53... Qe4+ {[%clk 0:00:10.6]} 54. Kg1 {[%clk
0:00:09.8]} 54... Qg2# {[%clk 0:00:10.9]} 0-1

[Event "*** Titled Tuesday Blitz"]
[Site "Chess.com"]
[Date "2020.04.14"]
[Round "4"]
[White "KuzubovYuriy"]
[Black "UCantHandleDenker"]
[Result "0-1"]
[WhiteElo "2781"]
[BlackElo "2579"]
[TimeControl "180+1"]
[EndTime "10:40:28 PDT"]
[Termination "UCantHandleDenker won on time"]

1. d4 {[%clk 0:03:00.9]} 1... Nf6 {[%clk 0:02:59.3]} 2. Nf3 {[%clk 0:03:00.4]}
2... g6 {[%clk 0:02:56.6]} 3. Nbd2 {[%clk 0:03:00.4]} 3... Bg7 {[%clk
0:02:55.7]} 4. e4 {[%clk 0:02:59.9]} 4... d6 {[%clk 0:02:56]} 5. Bd3 {[%clk
0:02:59.7]} 5... O-O {[%clk 0:02:56.5]} 6. O-O {[%clk 0:02:59.6]} 6... Nc6
{[%clk 0:02:49.6]} 7. Re1 {[%clk 0:02:55.1]} 7... e5 {[%clk 0:02:49.6]} 8. dxe5
{[%clk 0:02:54.8]} 8... dxe5 {[%clk 0:02:47.6]} 9. Nc4 {[%clk 0:02:46.1]} 9...
Nh5 {[%clk 0:02:40.6]} 10. Bg5 {[%clk 0:02:27.5]} 10... Qe8 {[%clk 0:02:38.7]}
11. Ne3 {[%clk 0:02:18.9]} 11... f6 {[%clk 0:02:28.7]} 12. Bh4 {[%clk
0:02:18.2]} 12... Nf4 {[%clk 0:02:26.3]} 13. Bc4+ {[%clk 0:01:59.1]} 13... Kh8
{[%clk 0:02:24.3]} 14. Bg3 {[%clk 0:01:57]} 14... Ne6 {[%clk 0:02:12]} 15. Bd5
{[%clk 0:01:38.5]} 15... Bd7 {[%clk 0:02:08.4]} 16. c3 {[%clk 0:01:37]} 16... a6
{[%clk 0:02:04.4]} 17. Qc2 {[%clk 0:01:36.1]} 17... h5 {[%clk 0:01:42.5]} 18. h3
{[%clk 0:01:29.7]} 18... Bh6 {[%clk 0:01:42.7]} 19. Rad1 {[%clk 0:01:28.6]}
19... Rd8 {[%clk 0:01:41]} 20. b4 {[%clk 0:01:26.1]} 20... Kh7 {[%clk
0:01:40.8]} 21. Bb3 {[%clk 0:01:23.4]} 21... Ne7 {[%clk 0:01:33.6]} 22. a4
{[%clk 0:01:11.4]} 22... Nf4 {[%clk 0:01:25.6]} 23. a5 {[%clk 0:00:53.5]} 23...
Bc6 {[%clk 0:01:14.8]} 24. Bxf4 {[%clk 0:00:46.4]} 24... Bxf4 {[%clk 0:01:13.4]}
25. Nd5 {[%clk 0:00:46.5]} 25... Bxd5 {[%clk 0:01:11.5]} 26. exd5 {[%clk
0:00:45.2]} 26... Nc8 {[%clk 0:01:09.2]} 27. c4 {[%clk 0:00:44.2]} 27... Nd6
{[%clk 0:01:01.6]} 28. c5 {[%clk 0:00:43.6]} 28... Nb5 {[%clk 0:01:02.1]} 29.
Ba4 {[%clk 0:00:41.5]} 29... Qf7 {[%clk 0:01:01.7]} 30. Bxb5 {[%clk 0:00:36.6]}
30... axb5 {[%clk 0:01:02.6]} 31. c6 {[%clk 0:00:35.9]} 31... bxc6 {[%clk
0:00:55.9]} 32. Qxc6 {[%clk 0:00:35.1]} 32... Rd6 {[%clk 0:00:42.3]} 33. Qxb5
{[%clk 0:00:34.6]} 33... Rfd8 {[%clk 0:00:43.2]} 34. a6 {[%clk 0:00:29.6]} 34...
c6 {[%clk 0:00:43.2]} 35. Qa4 {[%clk 0:00:26.8]} 35... cxd5 {[%clk 0:00:42.6]}
36. b5 {[%clk 0:00:26.1]} 36... d4 {[%clk 0:00:40.8]} 37. Rb1 {[%clk 0:00:23.6]}
37... Rb6 {[%clk 0:00:33.9]} 38. Qa5 {[%clk 0:00:18]} 38... Qa7 {[%clk
0:00:31.5]} 39. Nd2 {[%clk 0:00:15.8]} 39... Bxd2 {[%clk 0:00:30.5]} 40. Qxd2
{[%clk 0:00:16]} 40... Rdb8 {[%clk 0:00:30.7]} 41. Qd3 {[%clk 0:00:15.6]} 41...
Qa8 {[%clk 0:00:27]} 42. f4 {[%clk 0:00:15.1]} 42... Qd5 {[%clk 0:00:26.4]} 43.
fxe5 {[%clk 0:00:14.6]} 43... fxe5 {[%clk 0:00:27.3]} 44. a7 {[%clk 0:00:13.9]}
44... Ra8 {[%clk 0:00:27]} 45. Rbc1 {[%clk 0:00:13.9]} 45... Rxa7 {[%clk
0:00:26.5]} 46. Rc8 {[%clk 0:00:13.8]} 46... Rf7 {[%clk 0:00:25.3]} 47. Qg3
{[%clk 0:00:13.4]} 47... d3 {[%clk 0:00:19.9]} 48. Rxe5 {[%clk 0:00:13]} 48...
Qd4+ {[%clk 0:00:19.2]} 49. Kh2 {[%clk 0:00:13.2]} 49... Rbf6 {[%clk 0:00:18.8]}
50. Rxh5+ {[%clk 0:00:12.8]} 50... gxh5 {[%clk 0:00:16.2]} 51. Qg8+ {[%clk
0:00:12.9]} 51... Kh6 {[%clk 0:00:17]} 52. Qh8+ {[%clk 0:00:12.8]} 52... Kg6
{[%clk 0:00:17.2]} 53. Rg8+ {[%clk 0:00:12.4]} 53... Kf5 {[%clk 0:00:17.8]} 54.
Qxh5+ {[%clk 0:00:13]} 54... Ke6 {[%clk 0:00:18.4]} 55. Rg4 {[%clk 0:00:12.6]}
55... Qe5+ {[%clk 0:00:18.6]} 56. g3 {[%clk 0:00:10.2]} 56... Qxh5 {[%clk
0:00:18.3]} 0-1

[Event "*** Titled Tuesday Blitz"]
[Site "Chess.com"]
[Date "2020.04.14"]
[Round "4"]
[White "varacalli"]
[Black "wnstop"]
[Result "1/2-1/2"]
[WhiteElo "2382"]
[BlackElo "2578"]
[TimeControl "180+1"]
[EndTime "10:40:28 PDT"]
[Termination "Game drawn by repetition"]

1. e4 {[%clk 0:02:57.8]} 1... c5 {[%clk 0:02:59.6]} 2. Nf3 {[%clk 0:02:58]} 2...
d6 {[%clk 0:02:59.8]} 3. d4 {[%clk 0:02:58.6]} 3... cxd4 {[%clk 0:03:00.7]} 4.
Nxd4 {[%clk 0:02:59.5]} 4... Nf6 {[%clk 0:03:01.2]} 5. Nc3 {[%clk 0:03:00.1]}
5... Nc6 {[%clk 0:03:00.9]} 6. Be2 {[%clk 0:02:59.4]} 6... e5 {[%clk 0:03:00.4]}
7. Nf3 {[%clk 0:02:58.9]} 7... h6 {[%clk 0:03:00.4]} 8. O-O {[%clk 0:02:57.6]}
8... Be7 {[%clk 0:03:00.5]} 9. h3 {[%clk 0:02:58.2]} 9... O-O {[%clk 0:03:00.3]}
10. Nh2 {[%clk 0:02:58.9]} 10... a6 {[%clk 0:02:56.3]} 11. Ng4 {[%clk
0:02:59.4]} 11... b5 {[%clk 0:02:42.6]} 12. Nxf6+ {[%clk 0:02:57.4]} 12... Bxf6
{[%clk 0:02:43.1]} 13. Nd5 {[%clk 0:02:57.2]} 13... Be6 {[%clk 0:02:39.6]} 14.
c3 {[%clk 0:02:57.4]} 14... Bg5 {[%clk 0:02:36.3]} 15. Bxg5 {[%clk 0:02:53.4]}
15... Qxg5 {[%clk 0:02:36.3]} 16. Nc7 {[%clk 0:02:47.6]} 16... Bxh3 {[%clk
0:02:33.6]} 17. Bf3 {[%clk 0:02:44]} 17... Rad8 {[%clk 0:02:24.1]} 18. Qc1
{[%clk 0:02:34.7]} 18... Bc8 {[%clk 0:02:10.5]} 19. Qxg5 {[%clk 0:02:33.1]}
19... hxg5 {[%clk 0:02:11.4]} 20. g3 {[%clk 0:02:27.3]} 20... g6 {[%clk
0:02:01.7]} 21. Nd5 {[%clk 0:02:26.5]} 21... Kg7 {[%clk 0:02:01.2]} 22. a4
{[%clk 0:02:26.6]} 22... Be6 {[%clk 0:01:48.7]} 23. axb5 {[%clk 0:02:25.6]}
23... axb5 {[%clk 0:01:49.6]} 24. Rfd1 {[%clk 0:02:21.6]} 24... Ra8 {[%clk
0:01:44.1]} 25. Rxa8 {[%clk 0:02:16.8]} 25... Rxa8 {[%clk 0:01:45]} 26. Nc7
{[%clk 0:02:17.1]} 26... Rd8 {[%clk 0:01:16.3]} 27. Nxb5 {[%clk 0:02:13.6]}
27... Rb8 {[%clk 0:01:16.3]} 28. Nxd6 {[%clk 0:02:07]} 28... Rxb2 {[%clk
0:01:15.4]} 29. Ne8+ {[%clk 0:01:58.6]} 29... Kf8 {[%clk 0:01:15]} 30. Nf6
{[%clk 0:01:57.1]} 30... Rc2 {[%clk 0:01:11.4]} 31. Rd3 {[%clk 0:01:49.1]} 31...
Bc4 {[%clk 0:01:08.4]} 32. Rd6 {[%clk 0:01:45.7]} 32... Bb5 {[%clk 0:00:58.6]}
33. Rd5 {[%clk 0:01:32.5]} 33... Ba4 {[%clk 0:00:49.3]} 34. Nd7+ {[%clk
0:01:29.7]} 34... Kg7 {[%clk 0:00:47.1]} 35. Nxe5 {[%clk 0:01:27.1]} 35... Rxc3
{[%clk 0:00:42.2]} 36. Kg2 {[%clk 0:01:17.9]} 36... Nb4 {[%clk 0:00:30.7]} 37.
Rd4 {[%clk 0:01:13]} 37... Nc6 {[%clk 0:00:26.9]} 38. Rd5 {[%clk 0:01:06.1]}
38... Nxe5 {[%clk 0:00:19.4]} 39. Rxe5 {[%clk 0:01:07]} 39... Kf6 {[%clk
0:00:17.6]} 40. Ra5 {[%clk 0:01:05.8]} 40... Bd7 {[%clk 0:00:13.3]} 41. e5+
{[%clk 0:01:01.3]} 41... Kg7 {[%clk 0:00:12.3]} 42. Bd5 {[%clk 0:00:55.2]} 42...
Rc7 {[%clk 0:00:06.6]} 43. Ba2 {[%clk 0:00:50.5]} 43... Bf5 {[%clk 0:00:06.1]}
44. Bd5 {[%clk 0:00:44.9]} 44... g4 {[%clk 0:00:05.4]} 45. Ra4 {[%clk
0:00:40.6]} 45... Rd7 {[%clk 0:00:04.2]} 46. Be4 {[%clk 0:00:39.9]} 46... Re7
{[%clk 0:00:03]} 47. Bxf5 {[%clk 0:00:36.2]} 47... gxf5 {[%clk 0:00:03.9]} 48.
Ra5 {[%clk 0:00:36.8]} 48... Kg6 {[%clk 0:00:04.2]} 49. f4 {[%clk 0:00:36.5]}
49... Rb7 {[%clk 0:00:03.9]} 50. Ra6+ {[%clk 0:00:36.1]} 50... Kg7 {[%clk
0:00:04]} 51. Rf6 {[%clk 0:00:35.8]} 51... Rb2+ {[%clk 0:00:04]} 52. Kg1 {[%clk
0:00:36.3]} 52... Rb1+ {[%clk 0:00:04.2]} 53. Kf2 {[%clk 0:00:36.7]} 53... Rb2+
{[%clk 0:00:04.8]} 54. Kf1 {[%clk 0:00:37.1]} 54... Rb1+ {[%clk 0:00:05.2]} 55.
Kg2 {[%clk 0:00:37.6]} 55... Rb2+ {[%clk 0:00:05.6]} 56. Kh1 {[%clk 0:00:38.1]}
56... Rb1+ {[%clk 0:00:06]} 57. Kh2 {[%clk 0:00:38.6]} 57... Rb2+ {[%clk
0:00:06.9]} 58. Kg1 {[%clk 0:00:39.2]} 58... Rb1+ {[%clk 0:00:07.4]} 59. Kg2
{[%clk 0:00:39.9]} 59... Rb2+ {[%clk 0:00:07.9]} 1/2-1/2